BODY,BODY NAME,DATE,TRANSACTION NUMBER, AMOUNT ,SUPPLIER NAME,SUPPLIER ID,EXPENSE AREA,EXPENSE TYPE,EXPENSE CODE
http://statistics.data.gov.uk/id/local-authority/12UE,Huntingdonshire District Council,09/09/2010,65323,"2,070.01",King Street Housing Society,CR409301,Accommodation For Homeless,Management Charge,733
http://statistics.data.gov.uk/id/local-authority/12UE,Huntingdonshire District Council,16/09/2010,65322,823.56,King Street Housing Society,CR409301,Accommodation For Homeless,Management Charge,733
http://statistics.data.gov.uk/id/local-authority/12UE,Huntingdonshire District Council,30/09/2010,67550,"3,950.00",Elephant & Castle Freehouse & Motel,CR401969,Accommodation For Homeless,Bed & Breakfast Payment,818
http://statistics.data.gov.uk/id/local-authority/12UE,Huntingdonshire District Council,23/09/2010,67120,"3,500.00",Elephant & Castle Freehouse & Motel,CR401969,Accommodation For Homeless,Bed & Breakfast Payment,818
http://statistics.data.gov.uk/id/local-authority/12UE,Huntingdonshire District Council,16/09/2010,66692,"3,000.00",Elephant & Castle Freehouse & Motel,CR401969,Accommodation For Homeless,Bed & Breakfast Payment,818
http://statistics.data.gov.uk/id/local-authority/12UE,Huntingdonshire District Council,09/09/2010,66236,"2,900.00",Elephant & Castle Freehouse & Motel,CR401969,Accommodation For Homeless,Bed & Breakfast Payment,818
http://statistics.data.gov.uk/id/local-authority/12UE,Huntingdonshire District Council,01/09/2010,65761,"2,900.00",Elephant & Castle Freehouse & Motel,CR401969,Accommodation For Homeless,Bed & Breakfast Payment,818
http://statistics.data.gov.uk/id/local-authority/12UE,Huntingdonshire District Council,23/09/2010,65911,986.94,Portland Poly Bag Supplies,CR403505,Animal Welfare,Advertising/Promoting Services,255
http://statistics.data.gov.uk/id/local-authority/12UE,Huntingdonshire District Council,09/09/2010,66055,852.23,Uplands Way Vets Ltd,CR032818,Animal Welfare,Vets,760
http://statistics.data.gov.uk/id/local-authority/12UE,Huntingdonshire District Council,30/09/2010,67123,874.45,Ken Girvan Printers Ltd,CR027358,Arts Development,Printing (External),220
http://statistics.data.gov.uk/id/local-authority/12UE,Huntingdonshire District Council,01/09/2010,65034,"1,058.91",Austins Plant Services Ltd,CR477914,Bring Sites Recycling,Vehicle Maintenance,619
http://statistics.data.gov.uk/id/local-authority/12UE,Huntingdonshire District Council,30/09/2010,67191,"1,452.91",Opus International Consultants,CR479831,Building Control Applications,Consultants Other,711
http://statistics.data.gov.uk/id/local-authority/12UE,Huntingdonshire District Council,30/09/2010,67191,237.51,Opus International Consultants,CR479831,Building Control Other,Consultants Other,711
http://statistics.data.gov.uk/id/local-authority/12UE,Huntingdonshire District Council,23/09/2010,499120,564.00,Melton Borough Council,CR480873,Building Control Other,Subcontractors,777
http://statistics.data.gov.uk/id/local-authority/12UE,Huntingdonshire District Council,23/09/2010,499119,534.63,Melton Borough Council,CR480873,Building Control Other,Subcontractors,777
http://statistics.data.gov.uk/id/local-authority/12UE,Huntingdonshire District Council,30/09/2010,65762,229.13,Beebys Limited,CR415822,Bus Stations,Gen Building Mtce - Planned,304
http://statistics.data.gov.uk/id/local-authority/12UE,Huntingdonshire District Council,30/09/2010,65760,229.13,Beebys Limited,CR415822,Bus Stations,Gen Building Mtce - Planned,304
http://statistics.data.gov.uk/id/local-authority/12UE,Huntingdonshire District Council,16/09/2010,65427,215.05,Cambridge Water Plc,CR000172,Bus Stations,Water,432
http://statistics.data.gov.uk/id/local-authority/12UE,Huntingdonshire District Council,16/09/2010,65427,373.83,Cambridge Water Plc,CR000172,Bus Stations,Sewerage,433
http://statistics.data.gov.uk/id/local-authority/12UE,Huntingdonshire District Council,30/09/2010,65762,23.50,Beebys Limited,CR415822,Bus Stations,Window Cleaning,442
http://statistics.data.gov.uk/id/local-authority/12UE,Huntingdonshire District Council,30/09/2010,65760,23.50,Beebys Limited,CR415822,Bus Stations,Window Cleaning,442
http://statistics.data.gov.uk/id/local-authority/12UE,Huntingdonshire District Council,09/09/2010,65786,893.00,Jba Construction & Management Services,CR416716,Bus Stations Capital,Consultants Other,711
http://statistics.data.gov.uk/id/local-authority/12UE,Huntingdonshire District Council,01/09/2010,64453,"1,250.00",St Ives Town Initiative,CR415390,Business & Enterprise Support,Grants (Paid Out),800
http://statistics.data.gov.uk/id/local-authority/12UE,Huntingdonshire District Council,16/09/2010,65717,"14,716.88",Quadrant Security Group,CR027775,C C T V,Equipment Maintenance,511
http://statistics.data.gov.uk/id/local-authority/12UE,Huntingdonshire District Council,16/09/2010,65716,"2,191.38",Quadrant Security Group,CR027775,C C T V,Equipment Maintenance,511
http://statistics.data.gov.uk/id/local-authority/12UE,Huntingdonshire District Council,30/09/2010,66908,"134,439.13",Bt Redcare,CR410623,C C T V,Transmission Lines Rental,767
http://statistics.data.gov.uk/id/local-authority/12UE,Huntingdonshire District Council,30/09/2010,67190,699.13,Fat Pipe Satcom Ltd,CR479423,C C T V,Transmission Lines Rental,767
http://statistics.data.gov.uk/id/local-authority/12UE,Huntingdonshire District Council,01/09/2010,64550,699.13,Fat Pipe Satcom Ltd,CR479423,C C T V,Transmission Lines Rental,767
http://statistics.data.gov.uk/id/local-authority/12UE,Huntingdonshire District Council,01/09/2010,65217,25.73,T N T Post Midlands Ltd,CR479965,Call Centre,Postage,231
http://statistics.data.gov.uk/id/local-authority/12UE,Huntingdonshire District Council,01/09/2010,65216,13.12,T N T Post Midlands Ltd,CR479965,Call Centre,Postage,231
http://statistics.data.gov.uk/id/local-authority/12UE,Huntingdonshire District Council,23/09/2010,66013,561.33,Mhb Services,CR417269,Car Park Assets,Sitework,359
http://statistics.data.gov.uk/id/local-authority/12UE,Huntingdonshire District Council,30/09/2010,66911,-542.85,Bemrose Booth,CR407126,Car Park Management,Tickets,227
http://statistics.data.gov.uk/id/local-authority/12UE,Huntingdonshire District Council,30/09/2010,66910,"1,422.93",Bemrose Booth,CR407126,Car Park Management,Tickets,227
http://statistics.data.gov.uk/id/local-authority/12UE,Huntingdonshire District Council,09/09/2010,65472,"1,158.55",Liberty Services,CR027041,Car Park Management,Tickets,227
http://statistics.data.gov.uk/id/local-authority/12UE,Huntingdonshire District Council,30/09/2010,66010,"1,533.10",Oastlodge Ltd,CR479114,Car Park Management,Rent,410
http://statistics.data.gov.uk/id/local-authority/12UE,Huntingdonshire District Council,30/09/2010,66102,"3,630.87",Cale Briparc Ltd,CR401137,Car Park Management,Car Park Machines,522
http://statistics.data.gov.uk/id/local-authority/12UE,Huntingdonshire District Council,30/09/2010,67244,"5,589.79",G4s Cashservices Uk Ltd,CR407133,Car Park Management,Cash Collection,702
http://statistics.data.gov.uk/id/local-authority/12UE,Huntingdonshire District Council,01/09/2010,65677,"5,458.57",G4s Cashservices Uk Ltd,CR407133,Car Park Management,Cash Collection,702
http://statistics.data.gov.uk/id/local-authority/12UE,Huntingdonshire District Council,30/09/2010,67525,734.38,Aea Training,CR40222,Central & Democratic Serv Mu,Conferences,137
http://statistics.data.gov.uk/id/local-authority/12UE,Huntingdonshire District Council,16/09/2010,66585,160.83,T N T Post Midlands Ltd,CR479965,Central & Democratic Serv Mu,Postage,231
http://statistics.data.gov.uk/id/local-authority/12UE,Huntingdonshire District Council,16/09/2010,66486,"5,005.50",G Ferrara Ltd,CR478949,Chief Executive & C O M T,Sitework,359
http://statistics.data.gov.uk/id/local-authority/12UE,Huntingdonshire District Council,09/09/2010,65978,"1,404.13",Cipfa Business Limited,CR480088,Chief Executive & C O M T,Legal Fees And Consultancy,729
http://statistics.data.gov.uk/id/local-authority/12UE,Huntingdonshire District Council,09/09/2010,66252,"4,616.07",Locata Housing Services Ltd,CR478274,Choice Based Lettings (Ex Chr),Software,206
http://statistics.data.gov.uk/id/local-authority/12UE,Huntingdonshire District Council,09/09/2010,66250,"3,470.98",Locata Housing Services Ltd,CR478274,Choice Based Lettings (Ex Chr),Printing (External),220
http://statistics.data.gov.uk/id/local-authority/12UE,Huntingdonshire District Council,09/09/2010,66131,983.47,Swalec,CR407130,Community Projects,Electricity,420
http://statistics.data.gov.uk/id/local-authority/12UE,Huntingdonshire District Council,30/09/2010,67013,350.00,Moorside Pools & Leisure Products,CR411501,Community Projects,Building Cleaning Internal,440
http://statistics.data.gov.uk/id/local-authority/12UE,Huntingdonshire District Council,01/09/2010,64452,280.00,Moorside Pools & Leisure Products,CR411501,Community Projects,Building Cleaning Internal,440
http://statistics.data.gov.uk/id/local-authority/12UE,Huntingdonshire District Council,10/09/2010,498587,"3,015.55",Cambridgeshire County Council,CR006678,Community Projects,Grants (Paid Out),800
http://statistics.data.gov.uk/id/local-authority/12UE,Huntingdonshire District Council,10/09/2010,498589,"2,898.07",Cambridgeshire County Council,CR006678,Community Projects,Grants (Paid Out),800
http://statistics.data.gov.uk/id/local-authority/12UE,Huntingdonshire District Council,10/09/2010,498588,"1,603.48",Cambridgeshire County Council,CR006678,Community Projects,Grants (Paid Out),800
http://statistics.data.gov.uk/id/local-authority/12UE,Huntingdonshire District Council,30/09/2010,67549,670.34,Payne Security Ltd,CR406896,Concessionary Fares,Tickets,227
http://statistics.data.gov.uk/id/local-authority/12UE,Huntingdonshire District Council,30/09/2010,499760,"2,500.00",REDACTED PERSONAL DATA,CR480899,Conservation & Listed Build,Grants (Paid Out),800
http://statistics.data.gov.uk/id/local-authority/12UE,Huntingdonshire District Council,23/09/2010,499238,"2,000.00",REDACTED PERSONAL DATA,CR480884,Conservation & Listed Build,Grants (Paid Out),800
http://statistics.data.gov.uk/id/local-authority/12UE,Huntingdonshire District Council,30/09/2010,66572,1.40,Virgin Media Business,CR033120,Customer Service Centres,Telephone Charges,240
http://statistics.data.gov.uk/id/local-authority/12UE,Huntingdonshire District Council,01/09/2010,64387,1.00,Virgin Media Business,CR033120,Customer Service Centres,Telephone Charges,240
http://statistics.data.gov.uk/id/local-authority/12UE,Huntingdonshire District Council,30/09/2010,65979,"2,677.50",White Commercial Surveyors Ltd,CR412242,Customer Service Centres,Rent,410
http://statistics.data.gov.uk/id/local-authority/12UE,Huntingdonshire District Council,09/09/2010,66131,983.48,Swalec,CR407130,Customer Service Centres,Electricity,420
http://statistics.data.gov.uk/id/local-authority/12UE,Huntingdonshire District Council,30/09/2010,67013,350.00,Moorside Pools & Leisure Products,CR411501,Customer Service Centres,Building Cleaning Internal,440
http://statistics.data.gov.uk/id/local-authority/12UE,Huntingdonshire District Council,01/09/2010,64452,280.00,Moorside Pools & Leisure Products,CR411501,Customer Service Centres,Building Cleaning Internal,440
http://statistics.data.gov.uk/id/local-authority/12UE,Huntingdonshire District Council,30/09/2010,67243,510.03,G4s Cashservices Uk Ltd,CR407133,Customer Service Centres,Cash Collection,702
http://statistics.data.gov.uk/id/local-authority/12UE,Huntingdonshire District Council,30/09/2010,66659,"9,768.15",Drivers  Jonas Deloitte,CR400573,Dc Application Processing,Consultants Other,711
http://statistics.data.gov.uk/id/local-authority/12UE,Huntingdonshire District Council,23/09/2010,64352,"16,004.22",Drivers  Jonas Deloitte,CR400573,Dc Application Processing,Consultants Other,711
http://statistics.data.gov.uk/id/local-authority/12UE,Huntingdonshire District Council,16/09/2010,66603,"1,505.94",Royal Mail,CR027083,Document Centre,Postage,231
http://statistics.data.gov.uk/id/local-authority/12UE,Huntingdonshire District Council,01/09/2010,64789,"1,050.08",Royal Mail,CR027083,Document Centre,Postage,231
http://statistics.data.gov.uk/id/local-authority/12UE,Huntingdonshire District Council,30/09/2010,66946,844.82,T N T Post Midlands Ltd,CR479965,Document Centre,Postage,231
http://statistics.data.gov.uk/id/local-authority/12UE,Huntingdonshire District Council,16/09/2010,66585,996.75,T N T Post Midlands Ltd,CR479965,Document Centre,Postage,231
http://statistics.data.gov.uk/id/local-authority/12UE,Huntingdonshire District Council,01/09/2010,65217,919.65,T N T Post Midlands Ltd,CR479965,Document Centre,Postage,231
http://statistics.data.gov.uk/id/local-authority/12UE,Huntingdonshire District Council,01/09/2010,65216,745.70,T N T Post Midlands Ltd,CR479965,Document Centre,Postage,231
http://statistics.data.gov.uk/id/local-authority/12UE,Huntingdonshire District Council,30/09/2010,66575,"2,480.33",Oce Uk Limited,CR409013,Document Centre,Equipment Maintenance,511
http://statistics.data.gov.uk/id/local-authority/12UE,Huntingdonshire District Council,30/09/2010,66574,951.74,Oce Uk Limited,CR409013,Document Centre,Equipment Maintenance,511
http://statistics.data.gov.uk/id/local-authority/12UE,Huntingdonshire District Council,30/09/2010,66576,"4,344.70",Oce Uk Limited,CR409013,Document Centre,Materials,550
http://statistics.data.gov.uk/id/local-authority/12UE,Huntingdonshire District Council,16/09/2010,65954,597.34,Antalis Ltd,CR479468,Document Centre,Paper,562
http://statistics.data.gov.uk/id/local-authority/12UE,Huntingdonshire District Council,01/09/2010,65233,500.55,Antalis Ltd,CR479468,Document Centre,Paper,562
http://statistics.data.gov.uk/id/local-authority/12UE,Huntingdonshire District Council,30/09/2010,66567,"1,983.80",Staffline Group,CR416827,Domestic Refuse,Hired Staff,100
http://statistics.data.gov.uk/id/local-authority/12UE,Huntingdonshire District Council,30/09/2010,66563,"3,516.05",Staffline Group,CR416827,Domestic Refuse,Hired Staff,100
http://statistics.data.gov.uk/id/local-authority/12UE,Huntingdonshire District Council,30/09/2010,66006,"3,263.03",Staffline Group,CR416827,Domestic Refuse,Hired Staff,100
http://statistics.data.gov.uk/id/local-authority/12UE,Huntingdonshire District Council,30/09/2010,66004,"1,833.12",Staffline Group,CR416827,Domestic Refuse,Hired Staff,100
http://statistics.data.gov.uk/id/local-authority/12UE,Huntingdonshire District Council,16/09/2010,65921,"2,144.88",Staffline Group,CR416827,Domestic Refuse,Hired Staff,100
http://statistics.data.gov.uk/id/local-authority/12UE,Huntingdonshire District Council,16/09/2010,65919,"3,252.27",Staffline Group,CR416827,Domestic Refuse,Hired Staff,100
http://statistics.data.gov.uk/id/local-authority/12UE,Huntingdonshire District Council,09/09/2010,64910,"2,139.53",Staffline Group,CR416827,Domestic Refuse,Hired Staff,100
http://statistics.data.gov.uk/id/local-authority/12UE,Huntingdonshire District Council,09/09/2010,64908,"3,252.27",Staffline Group,CR416827,Domestic Refuse,Hired Staff,100
http://statistics.data.gov.uk/id/local-authority/12UE,Huntingdonshire District Council,01/09/2010,64577,"1,198.78",Staffline Group,CR416827,Domestic Refuse,Hired Staff,100
http://statistics.data.gov.uk/id/local-authority/12UE,Huntingdonshire District Council,01/09/2010,64576,"2,064.25",Staffline Group,CR416827,Domestic Refuse,Hired Staff,100
http://statistics.data.gov.uk/id/local-authority/12UE,Huntingdonshire District Council,30/09/2010,66103,"3,000.00",Cambridgeshire Police Authority,CR404325,Domestic Refuse,Mobile Telephones & Radios,241
http://statistics.data.gov.uk/id/local-authority/12UE,Huntingdonshire District Council,30/09/2010,66107,"3,189.42",Gelpack Excelsior Limited,CR002966,Domestic Refuse,Refuse Sacks,552
http://statistics.data.gov.uk/id/local-authority/12UE,Huntingdonshire District Council,16/09/2010,65932,643.90,G E Capital Tls Ltd,CR411508,Domestic Refuse,Vehicle Hire,607
http://statistics.data.gov.uk/id/local-authority/12UE,Huntingdonshire District Council,16/09/2010,65999,635.79,Dennis Eagle Ltd,CR000200,Domestic Refuse,Vehicle Maintenance,619
http://statistics.data.gov.uk/id/local-authority/12UE,Huntingdonshire District Council,16/09/2010,65997,849.90,Dennis Eagle Ltd,CR000200,Domestic Refuse,Vehicle Maintenance,619
http://statistics.data.gov.uk/id/local-authority/12UE,Huntingdonshire District Council,16/09/2010,65995,"1,003.88",Dennis Eagle Ltd,CR000200,Domestic Refuse,Vehicle Maintenance,619
http://statistics.data.gov.uk/id/local-authority/12UE,Huntingdonshire District Council,09/09/2010,65033,852.71,M & N Vehicle Services,CR480661,Domestic Refuse,Vehicle Maintenance,619
http://statistics.data.gov.uk/id/local-authority/12UE,Huntingdonshire District Council,09/09/2010,65037,567.15,Terberg Matec Uk Ltd,CR402183,Domestic Refuse,Vehicle Maintenance,619
http://statistics.data.gov.uk/id/local-authority/12UE,Huntingdonshire District Council,16/09/2010,66002,665.56,Dennis Eagle Ltd,CR000200,Domestic Refuse,Vehicle Parts,625
http://statistics.data.gov.uk/id/local-authority/12UE,Huntingdonshire District Council,16/09/2010,66735,"6,809.59",Bandvulc Tyres Ltd,CR406810,Domestic Refuse,Tyres,630
http://statistics.data.gov.uk/id/local-authority/12UE,Huntingdonshire District Council,16/09/2010,66051,465.30,Ians Tyre And Exhaust Centre,CR405836,Domestic Refuse,Tyres,630
http://statistics.data.gov.uk/id/local-authority/12UE,Huntingdonshire District Council,09/09/2010,66039,622.75,Ians Tyre And Exhaust Centre,CR405836,Domestic Refuse,Tyres,630
http://statistics.data.gov.uk/id/local-authority/12UE,Huntingdonshire District Council,23/09/2010,65964,"1,570.04",Kone Lifts Ltd,CR000483,Efh & Depots,Gen Building Mtce - Responsive,303
http://statistics.data.gov.uk/id/local-authority/12UE,Huntingdonshire District Council,16/09/2010,65239,"5,217.59",Anglia Electrical Services Ltd,CR477493,Efh & Depots,Gen Building Mtce - Planned,304
http://statistics.data.gov.uk/id/local-authority/12UE,Huntingdonshire District Council,30/09/2010,66611,"2,914.01",Hygiene Solutions,CR477443,Efh & Depots,Gen Building Mtce - Planned,304
http://statistics.data.gov.uk/id/local-authority/12UE,Huntingdonshire District Council,16/09/2010,66299,"4,108.23",Swalec,CR407130,Efh & Depots,Electricity,420
http://statistics.data.gov.uk/id/local-authority/12UE,Huntingdonshire District Council,01/09/2010,65690,602.35,British Gas Business,CR478619,Efh & Depots,Gas,421
http://statistics.data.gov.uk/id/local-authority/12UE,Huntingdonshire District Council,09/09/2010,66088,"1,353.18",Ecocleen Services Limited,CR406985,Efh & Depots,Building Cleaning Internal,440
http://statistics.data.gov.uk/id/local-authority/12UE,Huntingdonshire District Council,01/09/2010,64783,"1,457.00",Dal-Rod (Camridgeshire),CR413675,Eh Drainage Holding Acs,Drains & Sewers,321
http://statistics.data.gov.uk/id/local-authority/12UE,Huntingdonshire District Council,01/09/2010,64348,"4,441.50",West Anglia Training Assoc.Ltd,CR025035,Eh Health & Safety,Training - Operational,131
http://statistics.data.gov.uk/id/local-authority/12UE,Huntingdonshire District Council,30/09/2010,66586,"11,983.71",Royal Mail,CR027083,Elections,Postage,231
http://statistics.data.gov.uk/id/local-authority/12UE,Huntingdonshire District Council,16/09/2010,65457,"1,069.22",Marney Hall Consultancy Limited,CR480342,Energy Efficiency,Consultants Other,711
http://statistics.data.gov.uk/id/local-authority/12UE,Huntingdonshire District Council,16/09/2010,65913,820.86,Dell Computer Corporation,CR408320,Environmental Health M Us,Other I T Hardware,203
http://statistics.data.gov.uk/id/local-authority/12UE,Huntingdonshire District Council,16/09/2010,66480,"75,485.24",Apollo Property Services Group,CR480335,Environmental Improvements,Building Construction,300
http://statistics.data.gov.uk/id/local-authority/12UE,Huntingdonshire District Council,16/09/2010,66706,"1,175.00",Psk Installations,CR416540,Environmental Improvements,Sitework,359
http://statistics.data.gov.uk/id/local-authority/12UE,Huntingdonshire District Council,16/09/2010,66739,"2,134.91",Higgins (Wellingborough) Ltd,CR480858,Environmental Improvements,Materials,550
http://statistics.data.gov.uk/id/local-authority/12UE,Huntingdonshire District Council,30/09/2010,66561,"2,156.13",G Ferrara Ltd,CR478949,Environmental Imps Mgt,Sitework,359
http://statistics.data.gov.uk/id/local-authority/12UE,Huntingdonshire District Council,30/09/2010,66559,"5,769.25",G Ferrara Ltd,CR478949,Environmental Imps Mgt,Sitework,359
http://statistics.data.gov.uk/id/local-authority/12UE,Huntingdonshire District Council,16/09/2010,66725,"1,519.98",Papworth Trust,CR416703,Equal Opportunities,Hire Of Rooms,411
http://statistics.data.gov.uk/id/local-authority/12UE,Huntingdonshire District Council,30/09/2010,66213,"6,274.50",Sdc Builders Ltd,CR131743,Estates Properties Capital,Sitework,359
http://statistics.data.gov.uk/id/local-authority/12UE,Huntingdonshire District Council,30/09/2010,67543,"6,583.61",Drivers  Jonas Deloitte,CR400573,Estates Properties Capital,Consultants Other,711
http://statistics.data.gov.uk/id/local-authority/12UE,Huntingdonshire District Council,30/09/2010,67502,"3,883.38",Grant Thornton Uk Llp,CR400653,External Audit,Audit Fees,701
http://statistics.data.gov.uk/id/local-authority/12UE,Huntingdonshire District Council,23/09/2010,67270,"1,057.50",Advanced Business Solutions,CR032921,Financial Services,It Software Development,721
http://statistics.data.gov.uk/id/local-authority/12UE,Huntingdonshire District Council,01/09/2010,65701,"3,572.00",Deloitte,CR416667,Financial Services Mus,Hired Staff,100
http://statistics.data.gov.uk/id/local-authority/12UE,Huntingdonshire District Council,30/09/2010,67506,720.84,Regal Credit Consultants Ltd,CR415027,Financial Services Mus,Bailiffs,703
http://statistics.data.gov.uk/id/local-authority/12UE,Huntingdonshire District Council,01/09/2010,65702,"4,758.75",Deloitte,CR416667,Financial Services Mus,Computer Audit,778
http://statistics.data.gov.uk/id/local-authority/12UE,Huntingdonshire District Council,01/09/2010,65700,"6,345.00",Deloitte,CR416667,Financial Services Mus,Computer Audit,778
http://statistics.data.gov.uk/id/local-authority/12UE,Huntingdonshire District Council,09/09/2010,65914,657.17,Wolters Kluwer (Uk) Ltd,CR416692,Fleet Management,Books & Publications,250
http://statistics.data.gov.uk/id/local-authority/12UE,Huntingdonshire District Council,30/09/2010,66262,96.24,Days Contract Hire,CR417030,Fleet Management,Service Charges,412
http://statistics.data.gov.uk/id/local-authority/12UE,Huntingdonshire District Council,30/09/2010,66262,965.28,Days Contract Hire,CR417030,Fleet Management,Vehicle Finance Leases,602
http://statistics.data.gov.uk/id/local-authority/12UE,Huntingdonshire District Council,30/09/2010,66551,565.18,Swaingrove Imaging,CR478873,Food Safety,Printing (External),220
http://statistics.data.gov.uk/id/local-authority/12UE,Huntingdonshire District Council,09/09/2010,65909,"5,953.81",Computershare Vouchers Ltd,CR412205,General Creditors,Deductions Paid To Third Party,26
http://statistics.data.gov.uk/id/local-authority/12UE,Huntingdonshire District Council,30/09/2010,66565,854.20,Staffline Group,CR416827,Grounds Maintenance (Combined),Hired Staff,100
http://statistics.data.gov.uk/id/local-authority/12UE,Huntingdonshire District Council,30/09/2010,66008,729.23,Staffline Group,CR416827,Grounds Maintenance (Combined),Hired Staff,100
http://statistics.data.gov.uk/id/local-authority/12UE,Huntingdonshire District Council,16/09/2010,65931,811.56,Staffline Group,CR416827,Grounds Maintenance (Combined),Hired Staff,100
http://statistics.data.gov.uk/id/local-authority/12UE,Huntingdonshire District Council,09/09/2010,64900,870.37,Staffline Group,CR416827,Grounds Maintenance (Combined),Hired Staff,100
http://statistics.data.gov.uk/id/local-authority/12UE,Huntingdonshire District Council,23/09/2010,66035,76.81,Euramka Promotions Ltd,CR001864,Grounds Maintenance (Combined),Petrol,614
http://statistics.data.gov.uk/id/local-authority/12UE,Huntingdonshire District Council,23/09/2010,66035,"1,012.38",Euramka Promotions Ltd,CR001864,Grounds Maintenance (Combined),Diesel,615
http://statistics.data.gov.uk/id/local-authority/12UE,Huntingdonshire District Council,09/09/2010,65970,"1,265.35",Arthur Ibbett Ltd,CR000430,Grounds Maintenance (Combined),Vehicle Maintenance,619
http://statistics.data.gov.uk/id/local-authority/12UE,Huntingdonshire District Council,23/09/2010,66963,563.08,Ernest Doe & Sons,CR000261,Grounds Maintenance (Combined),Vehicle Maintenance,619
http://statistics.data.gov.uk/id/local-authority/12UE,Huntingdonshire District Council,16/09/2010,66282,"1,339.34",Ernest Doe & Sons,CR000261,Grounds Maintenance (Combined),Vehicle Maintenance,619
http://statistics.data.gov.uk/id/local-authority/12UE,Huntingdonshire District Council,01/09/2010,64480,"1,045.95",Fleet Services Uk Ltd,CR480744,Grounds Maintenance (Combined),Vehicle Refurbishment,624
http://statistics.data.gov.uk/id/local-authority/12UE,Huntingdonshire District Council,16/09/2010,66051,420.65,Ians Tyre And Exhaust Centre,CR405836,Grounds Maintenance (Combined),Tyres,630
http://statistics.data.gov.uk/id/local-authority/12UE,Huntingdonshire District Council,09/09/2010,66044,391.27,Ians Tyre And Exhaust Centre,CR405836,Grounds Maintenance (Combined),Tyres,630
http://statistics.data.gov.uk/id/local-authority/12UE,Huntingdonshire District Council,09/09/2010,66039,244.40,Ians Tyre And Exhaust Centre,CR405836,Grounds Maintenance (Combined),Tyres,630
http://statistics.data.gov.uk/id/local-authority/12UE,Huntingdonshire District Council,30/09/2010,66027,"1,500.00",Zurich Municipal,CR003638,Grounds Maintenance (Combined),Insurance Excess,797
http://statistics.data.gov.uk/id/local-authority/12UE,Huntingdonshire District Council,16/09/2010,65927,493.50,British Computer Society,CR416075,Head Of Imd,Training - I T,134
http://statistics.data.gov.uk/id/local-authority/12UE,Huntingdonshire District Council,23/09/2010,65951,687.37,1st Choice Recruitment,CR406132,Helpdesk,Hired Staff,100
http://statistics.data.gov.uk/id/local-authority/12UE,Huntingdonshire District Council,16/09/2010,65729,552.19,1st Choice Recruitment,CR406132,Helpdesk,Hired Staff,100
http://statistics.data.gov.uk/id/local-authority/12UE,Huntingdonshire District Council,09/09/2010,65049,528.16,1st Choice Recruitment,CR406132,Helpdesk,Hired Staff,100
http://statistics.data.gov.uk/id/local-authority/12UE,Huntingdonshire District Council,09/09/2010,65048,643.31,1st Choice Recruitment,CR406132,Helpdesk,Hired Staff,100
http://statistics.data.gov.uk/id/local-authority/12UE,Huntingdonshire District Council,01/09/2010,64410,669.75,1st Choice Recruitment,CR406132,Helpdesk,Hired Staff,100
http://statistics.data.gov.uk/id/local-authority/12UE,Huntingdonshire District Council,16/09/2010,65916,114.21,Dell Computer Corporation,CR408320,Helpdesk,Other I T Hardware,203
http://statistics.data.gov.uk/id/local-authority/12UE,Huntingdonshire District Council,09/09/2010,66216,"1,762.50",Coral Design Management,CR029621,Hinchingbrooke Country Park,Printing (External),220
http://statistics.data.gov.uk/id/local-authority/12UE,Huntingdonshire District Council,09/09/2010,66208,761.40,B. S. Graves Electrical Ltd,CR000363,Hinchingbrooke Country Park,Security,450
http://statistics.data.gov.uk/id/local-authority/12UE,Huntingdonshire District Council,23/09/2010,66526,906.40,Lafarge Aggregates Limited,CR411062,Hinchingbrooke Country Park,Materials,550
http://statistics.data.gov.uk/id/local-authority/12UE,Huntingdonshire District Council,09/09/2010,66214,428.78,Booker Wholesale,CR479752,Hinchingbrooke Country Park,Catering Materials,559
http://statistics.data.gov.uk/id/local-authority/12UE,Huntingdonshire District Council,30/09/2010,67490,625.03,King Bros,CR411339,Hinchingbrooke Country Park,Catering Materials,559
http://statistics.data.gov.uk/id/local-authority/12UE,Huntingdonshire District Council,23/09/2010,66558,625.29,King Bros,CR411339,Hinchingbrooke Country Park,Catering Materials,559
http://statistics.data.gov.uk/id/local-authority/12UE,Huntingdonshire District Council,09/09/2010,65019,652.25,King Bros,CR411339,Hinchingbrooke Country Park,Catering Materials,559
http://statistics.data.gov.uk/id/local-authority/12UE,Huntingdonshire District Council,01/09/2010,65018,600.22,King Bros,CR411339,Hinchingbrooke Country Park,Catering Materials,559
http://statistics.data.gov.uk/id/local-authority/12UE,Huntingdonshire District Council,30/09/2010,67498,666.02,S S Motors (Fuels)  Ltd,CR400864,Hinchingbrooke Country Park,Diesel,615
http://statistics.data.gov.uk/id/local-authority/12UE,Huntingdonshire District Council,09/09/2010,66214,75.40,Booker Wholesale,CR479752,Hinchingbrooke Country Park,Promotions And Exhibitions,743
http://statistics.data.gov.uk/id/local-authority/12UE,Huntingdonshire District Council,23/09/2010,66529,872.81,Biffa Waste Services Ltd,CR416469,Hinchingbrooke Country Park,Waste Disposal,763
http://statistics.data.gov.uk/id/local-authority/12UE,Huntingdonshire District Council,16/09/2010,66718,511.71,Headley Stoke Associates,CR480870,Home Improvement Agency,Hired Staff,100
http://statistics.data.gov.uk/id/local-authority/12UE,Huntingdonshire District Council,23/09/2010,67115,540.50,Alexanders,CR415843,Homelessness Management,Removal/Storage,750
http://statistics.data.gov.uk/id/local-authority/12UE,Huntingdonshire District Council,09/09/2010,66221,981.10,Alexanders Self Storage,CR478267,Homelessness Management,Removal/Storage,750
http://statistics.data.gov.uk/id/local-authority/12UE,Huntingdonshire District Council,09/09/2010,66237,693.25,Lime Legal Ltd,CR416714,Housing Management Units,Training - Operational,131
http://statistics.data.gov.uk/id/local-authority/12UE,Huntingdonshire District Council,09/09/2010,66245,"1,186.55",Hqn Ltd,CR026133,Housing Management Units,Books & Publications,250
http://statistics.data.gov.uk/id/local-authority/12UE,Huntingdonshire District Council,01/09/2010,65742,763.75,Luminus Homes,CR401276,Housing Services Other,Gen Building Mtce - Responsive,303
http://statistics.data.gov.uk/id/local-authority/12UE,Huntingdonshire District Council,01/09/2010,65741,"1,345.10",Luminus Homes,CR401276,Housing Services Other,Gen Building Mtce - Responsive,303
http://statistics.data.gov.uk/id/local-authority/12UE,Huntingdonshire District Council,23/09/2010,66618,621.84,Swalec,CR407130,Housing Services Other,Electricity,420
http://statistics.data.gov.uk/id/local-authority/12UE,Huntingdonshire District Council,09/09/2010,65955,698.83,Swalec,CR407130,Housing Services Other,Electricity,420
http://statistics.data.gov.uk/id/local-authority/12UE,Huntingdonshire District Council,23/09/2010,67247,"2,964.04",Anglian Water,CR000071,Housing Services Other,Water,432
http://statistics.data.gov.uk/id/local-authority/12UE,Huntingdonshire District Council,01/09/2010,65743,"2,350.00",Cambridgeshire Horizons Ltd,CR413403,Housing Surveys,Consultants Other,711
http://statistics.data.gov.uk/id/local-authority/12UE,Huntingdonshire District Council,30/09/2010,67563,"1,085.76",Accomplished,CR477676,Human Resources,Training - Management,132
http://statistics.data.gov.uk/id/local-authority/12UE,Huntingdonshire District Council,30/09/2010,66118,501.50,Aran Services Ltd,CR479690,Improvement Grants,Equipment Purchases,500
http://statistics.data.gov.uk/id/local-authority/12UE,Huntingdonshire District Council,30/09/2010,67457,"109,571.43",Graham,CR480029,Industrial Properties Capital,Building Construction,300
http://statistics.data.gov.uk/id/local-authority/12UE,Huntingdonshire District Council,30/09/2010,67561,652.78,Zef Concepts,CR478573,Industrial Properties Capital,Consultants Other,711
http://statistics.data.gov.uk/id/local-authority/12UE,Huntingdonshire District Council,01/09/2010,65432,724.50,Esri Uk,CR405125,Information Manager,Training - Other,136
http://statistics.data.gov.uk/id/local-authority/12UE,Huntingdonshire District Council,01/09/2010,65217,247.29,T N T Post Midlands Ltd,CR479965,Internal Services Holding,Postage,231
http://statistics.data.gov.uk/id/local-authority/12UE,Huntingdonshire District Council,30/09/2010,66566,"1,145.14",Staffline Group,CR416827,Kerbside Recycling,Hired Staff,100
http://statistics.data.gov.uk/id/local-authority/12UE,Huntingdonshire District Council,30/09/2010,66003,"2,064.28",Staffline Group,CR416827,Kerbside Recycling,Hired Staff,100
http://statistics.data.gov.uk/id/local-authority/12UE,Huntingdonshire District Council,16/09/2010,65922,"2,193.28",Staffline Group,CR416827,Kerbside Recycling,Hired Staff,100
http://statistics.data.gov.uk/id/local-authority/12UE,Huntingdonshire District Council,09/09/2010,64914,"2,784.64",Staffline Group,CR416827,Kerbside Recycling,Hired Staff,100
http://statistics.data.gov.uk/id/local-authority/12UE,Huntingdonshire District Council,01/09/2010,64578,"2,053.50",Staffline Group,CR416827,Kerbside Recycling,Hired Staff,100
http://statistics.data.gov.uk/id/local-authority/12UE,Huntingdonshire District Council,30/09/2010,66107,"10,059.50",Gelpack Excelsior Limited,CR002966,Kerbside Recycling,Refuse Sacks,552
http://statistics.data.gov.uk/id/local-authority/12UE,Huntingdonshire District Council,16/09/2010,66735,"2,359.58",Bandvulc Tyres Ltd,CR406810,Kerbside Recycling,Tyres,630
http://statistics.data.gov.uk/id/local-authority/12UE,Huntingdonshire District Council,01/09/2010,65324,678.37,Nationwide Crash Repair Centre,CR480644,Legal Services Managment Units,Vehicle Insurance Claim Excess,611
http://statistics.data.gov.uk/id/local-authority/12UE,Huntingdonshire District Council,30/09/2010,67609,"1,617.30",Community Playthings Uk Ltd,CR480880,Leisure Centres Capital,Furniture,200
http://statistics.data.gov.uk/id/local-authority/12UE,Huntingdonshire District Council,16/09/2010,65912,"1,259.22",Dell Computer Corporation,CR408320,Leisure Centres Capital,P C'S And Accessories,201
http://statistics.data.gov.uk/id/local-authority/12UE,Huntingdonshire District Council,16/09/2010,65912,130.66,Dell Computer Corporation,CR408320,Leisure Centres Capital,Other I T Hardware,203
http://statistics.data.gov.uk/id/local-authority/12UE,Huntingdonshire District Council,01/09/2010,26886,"4,147.97",Virgin Media Business,CR033120,Leisure Centres Capital,I T Line Rental,248
http://statistics.data.gov.uk/id/local-authority/12UE,Huntingdonshire District Council,30/09/2010,66260,"1,735.95",Charles Lawrence Surfaces Plc,CR409026,Leisure Centres Capital,Building Construction,300
http://statistics.data.gov.uk/id/local-authority/12UE,Huntingdonshire District Council,09/09/2010,65948,"203,173.43",R G Carter Peterborough,CR401511,Leisure Centres Capital,Building Construction,300
http://statistics.data.gov.uk/id/local-authority/12UE,Huntingdonshire District Council,30/09/2010,66490,"-1,625.03",E Bowman & Sons Ltd,CR478853,Leisure Centres Capital,Gen Building Mtce - Planned,304
http://statistics.data.gov.uk/id/local-authority/12UE,Huntingdonshire District Council,30/09/2010,66489,702.65,E Bowman & Sons Ltd,CR478853,Leisure Centres Capital,Gen Building Mtce - Planned,304
http://statistics.data.gov.uk/id/local-authority/12UE,Huntingdonshire District Council,30/09/2010,65290,"1,625.03",E Bowman & Sons Ltd,CR478853,Leisure Centres Capital,Gen Building Mtce - Planned,304
http://statistics.data.gov.uk/id/local-authority/12UE,Huntingdonshire District Council,09/09/2010,65452,"5,922.00",Balance Master,CR480751,Leisure Centres Capital,Equipment Purchases,500
http://statistics.data.gov.uk/id/local-authority/12UE,Huntingdonshire District Council,23/09/2010,67257,"4,092.38",Hephers Electrical,CR480879,Leisure Centres Capital,Equipment Purchases,500
http://statistics.data.gov.uk/id/local-authority/12UE,Huntingdonshire District Council,09/09/2010,65453,"12,680.60",Power Plate International Ltd,CR480728,Leisure Centres Capital,Equipment Purchases,500
http://statistics.data.gov.uk/id/local-authority/12UE,Huntingdonshire District Council,23/09/2010,67264,"3,118.92",Technogym Uk Ltd,CR033037,Leisure Centres Capital,Equipment Purchases,500
http://statistics.data.gov.uk/id/local-authority/12UE,Huntingdonshire District Council,30/09/2010,67262,"369,588.32",Technogym Uk Ltd,CR033037,Leisure Centres Capital,Equipment Purchases,500
http://statistics.data.gov.uk/id/local-authority/12UE,Huntingdonshire District Council,30/09/2010,67261,"16,708.50",Technogym Uk Ltd,CR033037,Leisure Centres Capital,Equipment Purchases,500
http://statistics.data.gov.uk/id/local-authority/12UE,Huntingdonshire District Council,23/09/2010,67258,"5,287.50",Technogym Uk Ltd,CR033037,Leisure Centres Capital,Sports Equipment,524
http://statistics.data.gov.uk/id/local-authority/12UE,Huntingdonshire District Council,16/09/2010,66492,"2,937.50",Building Services Design - Bsd,CR409263,Leisure Centres Capital,Consultants Other,711
http://statistics.data.gov.uk/id/local-authority/12UE,Huntingdonshire District Council,09/09/2010,65947,"8,225.00",Building Services Design - Bsd,CR409263,Leisure Centres Capital,Consultants Other,711
http://statistics.data.gov.uk/id/local-authority/12UE,Huntingdonshire District Council,16/09/2010,66119,"1,175.00",Jba Construction & Management Services,CR416716,Leisure Centres Capital,Consultants Other,711
http://statistics.data.gov.uk/id/local-authority/12UE,Huntingdonshire District Council,01/09/2010,496956,"17,625.00",Building Services Design - Bsd,CR409263,Leisure Centres Capital,Consultants Other,711
http://statistics.data.gov.uk/id/local-authority/12UE,Huntingdonshire District Council,01/09/2010,496954,881.25,Building Services Design - Bsd,CR409263,Leisure Centres Capital,Consultants Other,711
http://statistics.data.gov.uk/id/local-authority/12UE,Huntingdonshire District Council,30/09/2010,67640,758.58,Dor 2 Dor Cambridge,CR410187,Leisure Centres Overall,Advertising/Promoting Services,255
http://statistics.data.gov.uk/id/local-authority/12UE,Huntingdonshire District Council,30/09/2010,67534,"1,238.91",Cfb Limited,CR480886,Leisure Centres Overall,Consultants Other,711
http://statistics.data.gov.uk/id/local-authority/12UE,Huntingdonshire District Council,30/09/2010,67533,627.92,Cfb Limited,CR480886,Leisure Centres Overall,Consultants Other,711
http://statistics.data.gov.uk/id/local-authority/12UE,Huntingdonshire District Council,16/09/2010,65781,"1,175.00",Fmg Consulting Ltd,CR480839,Leisure Centres Overall,Consultants Other,711
http://statistics.data.gov.uk/id/local-authority/12UE,Huntingdonshire District Council,16/09/2010,65412,"1,157.38",Leisure Database Company,CR479551,Leisure Centres Overall,Consultants Other,711
http://statistics.data.gov.uk/id/local-authority/12UE,Huntingdonshire District Council,16/09/2010,65238,546.00,British Cycling,CR479079,Leisure Development,Instructors/Tutors,720
http://statistics.data.gov.uk/id/local-authority/12UE,Huntingdonshire District Council,16/09/2010,66278,"1,880.00",Paxton Lakes Sailing Club,CR406534,Leisure Development,Instructors/Tutors,720
http://statistics.data.gov.uk/id/local-authority/12UE,Huntingdonshire District Council,16/09/2010,66122,500.00,Paxton Lakes Sailing Club,CR406534,Leisure Development,Instructors/Tutors,720
http://statistics.data.gov.uk/id/local-authority/12UE,Huntingdonshire District Council,09/09/2010,64943,"60,276.55",J Breheny Contractors Ltd,CR000314,Leisure Services Capital,Sitework,359
http://statistics.data.gov.uk/id/local-authority/12UE,Huntingdonshire District Council,23/09/2010,499246,"1,500.00",Great Staughton Parish Council,CR002463,Leisure Services Capital,Grants (Paid Out),800
http://statistics.data.gov.uk/id/local-authority/12UE,Huntingdonshire District Council,16/09/2010,66094,771.00,Mo Motors,CR406493,Licences,Vehicle Inspection,618
http://statistics.data.gov.uk/id/local-authority/12UE,Huntingdonshire District Council,09/09/2010,66093,825.00,Mo Motors,CR406493,Licences,Vehicle Inspection,618
http://statistics.data.gov.uk/id/local-authority/12UE,Huntingdonshire District Council,23/09/2010,66092,756.00,Mo Motors,CR406493,Licences,Vehicle Inspection,618
http://statistics.data.gov.uk/id/local-authority/12UE,Huntingdonshire District Council,23/09/2010,66096,823.44,Mogo Uk,CR410378,Licences,Vehicle Inspection,618
http://statistics.data.gov.uk/id/local-authority/12UE,Huntingdonshire District Council,01/09/2010,65769,"7,569.60",Myriad Consultants,CR480801,Local Development Framework,Consultants Other,711
http://statistics.data.gov.uk/id/local-authority/12UE,Huntingdonshire District Council,23/09/2010,66106,851.87,Landsmans  Ltd,CR148599,Markets,Equipment Hire,507
http://statistics.data.gov.uk/id/local-authority/12UE,Huntingdonshire District Council,30/09/2010,66572,131.89,Virgin Media Business,CR033120,Member Allowances & Support,Telephone Charges,240
http://statistics.data.gov.uk/id/local-authority/12UE,Huntingdonshire District Council,01/09/2010,64387,147.91,Virgin Media Business,CR033120,Member Allowances & Support,Telephone Charges,240
http://statistics.data.gov.uk/id/local-authority/12UE,Huntingdonshire District Council,30/09/2010,67501,"5,746.25",Disability Information Service Huntingdonshir,CR408884,Miscellaneous Grants,Grants (Paid Out),800
http://statistics.data.gov.uk/id/local-authority/12UE,Huntingdonshire District Council,30/09/2010,67520,"45,812.50",Huntingdonshire Citizens Advice Bureau,CR406206,Miscellaneous Grants,Grants (Paid Out),800
http://statistics.data.gov.uk/id/local-authority/12UE,Huntingdonshire District Council,30/09/2010,67519,"10,300.00",Hunts Forum Of Voluntary Organisations,CR030582,Miscellaneous Grants,Grants (Paid Out),800
http://statistics.data.gov.uk/id/local-authority/12UE,Huntingdonshire District Council,30/09/2010,499609,"6,592.50",St Barnabas Community Learning Centre,CR412072,Miscellaneous Grants,Grants (Paid Out),800
http://statistics.data.gov.uk/id/local-authority/12UE,Huntingdonshire District Council,30/09/2010,66686,848.63,Reed Employment Plc,CR416757,Network Services,Hired Staff,100
http://statistics.data.gov.uk/id/local-authority/12UE,Huntingdonshire District Council,23/09/2010,66571,"1,027.64",Reed Employment Plc,CR416757,Network Services,Hired Staff,100
http://statistics.data.gov.uk/id/local-authority/12UE,Huntingdonshire District Council,09/09/2010,65718,"1,007.75",Reed Employment Plc,CR416757,Network Services,Hired Staff,100
http://statistics.data.gov.uk/id/local-authority/12UE,Huntingdonshire District Council,01/09/2010,65042,908.30,Reed Employment Plc,CR416757,Network Services,Hired Staff,100
http://statistics.data.gov.uk/id/local-authority/12UE,Huntingdonshire District Council,30/09/2010,66728,543.38,Coolspirit Ltd,CR416326,Network Services,Network Hardware,205
http://statistics.data.gov.uk/id/local-authority/12UE,Huntingdonshire District Council,23/09/2010,65910,"1,603.89",Net Control Ltd,CR410400,Network Services,Software,206
http://statistics.data.gov.uk/id/local-authority/12UE,Huntingdonshire District Council,23/09/2010,66275,643.31,Phoenix Software Ltd,CR031918,Network Services,Software,206
http://statistics.data.gov.uk/id/local-authority/12UE,Huntingdonshire District Council,30/09/2010,66572,"4,161.39",Virgin Media Business,CR033120,Network Services,Telephone Charges,240
http://statistics.data.gov.uk/id/local-authority/12UE,Huntingdonshire District Council,01/09/2010,64387,"4,132.04",Virgin Media Business,CR033120,Network Services,Telephone Charges,240
http://statistics.data.gov.uk/id/local-authority/12UE,Huntingdonshire District Council,01/09/2010,52571,"19,872.00",Ntl Telewest Business,CR412057,Network Services,I T Line Rental,248
http://statistics.data.gov.uk/id/local-authority/12UE,Huntingdonshire District Council,30/09/2010,66688,"27,025.00",Virgin Media Business,CR033120,Network Services,I T Line Rental,248
http://statistics.data.gov.uk/id/local-authority/12UE,Huntingdonshire District Council,01/09/2010,65044,"1,498.13",Virgin Media Business,CR033120,Network Services,I T Line Rental,248
http://statistics.data.gov.uk/id/local-authority/12UE,Huntingdonshire District Council,01/09/2010,26886,"10,637.50",Virgin Media Business,CR033120,Network Services,I T Line Rental,248
http://statistics.data.gov.uk/id/local-authority/12UE,Huntingdonshire District Council,09/09/2010,65445,"4,017.33",Hp Care Pack Sales,CR478055,Network Services,Equipment Maintenance,511
http://statistics.data.gov.uk/id/local-authority/12UE,Huntingdonshire District Council,30/09/2010,66729,"1,380.63",Comtec,CR480140,Network Services,Consultants Other,711
http://statistics.data.gov.uk/id/local-authority/12UE,Huntingdonshire District Council,09/09/2010,66277,793.13,Oracle Corporation Uk Ltd,CR400893,Network Services,Corporate Subscriptions,754
http://statistics.data.gov.uk/id/local-authority/12UE,Huntingdonshire District Council,16/09/2010,65464,564.00,Dal-Rod Uk Ltd,CR002782,Nightsoil,Subcontractors,777
http://statistics.data.gov.uk/id/local-authority/12UE,Huntingdonshire District Council,16/09/2010,65463,564.00,Dal-Rod Uk Ltd,CR002782,Nightsoil,Subcontractors,777
http://statistics.data.gov.uk/id/local-authority/12UE,Huntingdonshire District Council,16/09/2010,65462,705.00,Dal-Rod Uk Ltd,CR002782,Nightsoil,Subcontractors,777
http://statistics.data.gov.uk/id/local-authority/12UE,Huntingdonshire District Council,09/09/2010,64969,591.51,Konica Minolta Business Solutions East Ltd,CR478866,One Leisure Huntingdon,Other Office Equipment,209
http://statistics.data.gov.uk/id/local-authority/12UE,Huntingdonshire District Council,30/09/2010,66572,90.94,Virgin Media Business,CR033120,One Leisure Huntingdon,Telephone Charges,240
http://statistics.data.gov.uk/id/local-authority/12UE,Huntingdonshire District Council,01/09/2010,64387,88.89,Virgin Media Business,CR033120,One Leisure Huntingdon,Telephone Charges,240
http://statistics.data.gov.uk/id/local-authority/12UE,Huntingdonshire District Council,30/09/2010,67577,117.50,Archant Herts & Cambs,CR415764,One Leisure Huntingdon,Advertising/Promoting Services,255
http://statistics.data.gov.uk/id/local-authority/12UE,Huntingdonshire District Council,30/09/2010,66569,113.00,Rotary Printers (Stourport) Lt,CR032312,One Leisure Huntingdon,Advertising/Promoting Services,255
http://statistics.data.gov.uk/id/local-authority/12UE,Huntingdonshire District Council,30/09/2010,67024,507.60,Edf Energy Customer Field Services,CR477611,One Leisure Huntingdon,Electricity,420
http://statistics.data.gov.uk/id/local-authority/12UE,Huntingdonshire District Council,16/09/2010,66481,"3,727.48",Swalec,CR407130,One Leisure Huntingdon,Electricity,420
http://statistics.data.gov.uk/id/local-authority/12UE,Huntingdonshire District Council,16/09/2010,66479,"2,122.83",Swalec,CR407130,One Leisure Huntingdon,Electricity,420
http://statistics.data.gov.uk/id/local-authority/12UE,Huntingdonshire District Council,23/09/2010,66577,"2,153.93",E-On Energy,CR416430,One Leisure Huntingdon,Gas,421
http://statistics.data.gov.uk/id/local-authority/12UE,Huntingdonshire District Council,09/09/2010,66185,"1,762.50",Easy Cooling Company Ltd,CR480767,One Leisure Huntingdon,Equipment Purchases,500
http://statistics.data.gov.uk/id/local-authority/12UE,Huntingdonshire District Council,01/09/2010,64984,502.90,Heineken Uk Ltd,CR032678,One Leisure Huntingdon,Bar Provisions,558
http://statistics.data.gov.uk/id/local-authority/12UE,Huntingdonshire District Council,09/09/2010,66152,521.52,Booker Cash And Carry,CR027611,One Leisure Huntingdon,Vending Materials,560
http://statistics.data.gov.uk/id/local-authority/12UE,Huntingdonshire District Council,09/09/2010,66157,"1,054.95",Glaxosmithkline,CR010424,One Leisure Huntingdon,Vending Materials,560
http://statistics.data.gov.uk/id/local-authority/12UE,Huntingdonshire District Council,16/09/2010,65308,129.25,Clanpress King'S Lynn Ltd,CR413516,One Leisure Huntingdon,Badges And Certificates,571
http://statistics.data.gov.uk/id/local-authority/12UE,Huntingdonshire District Council,30/09/2010,67243,291.42,G4s Cashservices Uk Ltd,CR407133,One Leisure Huntingdon,Cash Collection,702
http://statistics.data.gov.uk/id/local-authority/12UE,Huntingdonshire District Council,09/09/2010,66189,"1,233.99",Ecocleen Services Limited,CR406985,One Leisure Huntingdon,Subcontractors,777
http://statistics.data.gov.uk/id/local-authority/12UE,Huntingdonshire District Council,30/09/2010,66027,"1,500.00",Zurich Municipal,CR003638,One Leisure Huntingdon,Insurance Excess,797
http://statistics.data.gov.uk/id/local-authority/12UE,Huntingdonshire District Council,16/09/2010,66295,"4,700.00",Leisurejobs Ltd,CR478674,One Leisure Ramsey,Recruitment - Advertising,120
http://statistics.data.gov.uk/id/local-authority/12UE,Huntingdonshire District Council,30/09/2010,67577,117.50,Archant Herts & Cambs,CR415764,One Leisure Ramsey,Advertising/Promoting Services,255
http://statistics.data.gov.uk/id/local-authority/12UE,Huntingdonshire District Council,30/09/2010,66569,113.00,Rotary Printers (Stourport) Lt,CR032312,One Leisure Ramsey,Advertising/Promoting Services,255
http://statistics.data.gov.uk/id/local-authority/12UE,Huntingdonshire District Council,23/09/2010,67144,"1,300.89",Gb Heating & Plumbing Services,CR004385,One Leisure Ramsey,Gen Building Mtce - Responsive,303
http://statistics.data.gov.uk/id/local-authority/12UE,Huntingdonshire District Council,09/09/2010,66015,940.93,Ecocleen Services Limited,CR406985,One Leisure Ramsey,Gen Building Mtce - Planned,304
http://statistics.data.gov.uk/id/local-authority/12UE,Huntingdonshire District Council,30/09/2010,66298,"1,424.10",Pool Solutions Ltd,CR412070,One Leisure Ramsey,Plant & Equipment Maintenance,380
http://statistics.data.gov.uk/id/local-authority/12UE,Huntingdonshire District Council,23/09/2010,66622,"2,388.21",Swalec,CR407130,One Leisure Ramsey,Electricity,420
http://statistics.data.gov.uk/id/local-authority/12UE,Huntingdonshire District Council,01/09/2010,65670,"2,797.99",Swalec,CR407130,One Leisure Ramsey,Electricity,420
http://statistics.data.gov.uk/id/local-authority/12UE,Huntingdonshire District Council,23/09/2010,66588,"1,005.32",E-On Energy,CR416430,One Leisure Ramsey,Gas,421
http://statistics.data.gov.uk/id/local-authority/12UE,Huntingdonshire District Council,01/09/2010,65455,"2,485.13",Technogym Uk Ltd,CR033037,One Leisure Ramsey,Equipment Purchases,500
http://statistics.data.gov.uk/id/local-authority/12UE,Huntingdonshire District Council,23/09/2010,67144,317.25,Gb Heating & Plumbing Services,CR004385,One Leisure Ramsey,Equipment Maintenance,511
http://statistics.data.gov.uk/id/local-authority/12UE,Huntingdonshire District Council,30/09/2010,67107,561.90,Booker Cash And Carry,CR027611,One Leisure Ramsey,Vending Materials,560
http://statistics.data.gov.uk/id/local-authority/12UE,Huntingdonshire District Council,16/09/2010,66653,525.23,Zoggs International Ltd,CR004270,One Leisure Ramsey,Materials For Resale,570
http://statistics.data.gov.uk/id/local-authority/12UE,Huntingdonshire District Council,16/09/2010,65308,105.75,Clanpress King'S Lynn Ltd,CR413516,One Leisure Ramsey,Badges And Certificates,571
http://statistics.data.gov.uk/id/local-authority/12UE,Huntingdonshire District Council,30/09/2010,67243,72.86,G4s Cashservices Uk Ltd,CR407133,One Leisure Ramsey,Cash Collection,702
http://statistics.data.gov.uk/id/local-authority/12UE,Huntingdonshire District Council,30/09/2010,67577,117.50,Archant Herts & Cambs,CR415764,One Leisure Sawtry,Advertising/Promoting Services,255
http://statistics.data.gov.uk/id/local-authority/12UE,Huntingdonshire District Council,30/09/2010,66569,113.00,Rotary Printers (Stourport) Lt,CR032312,One Leisure Sawtry,Advertising/Promoting Services,255
http://statistics.data.gov.uk/id/local-authority/12UE,Huntingdonshire District Council,23/09/2010,66722,"3,645.46",Swalec,CR407130,One Leisure Sawtry,Electricity,420
http://statistics.data.gov.uk/id/local-authority/12UE,Huntingdonshire District Council,23/09/2010,66721,"5,880.19",Swalec,CR407130,One Leisure Sawtry,Electricity,420
http://statistics.data.gov.uk/id/local-authority/12UE,Huntingdonshire District Council,23/09/2010,66587,"1,377.52",E-On Energy,CR416430,One Leisure Sawtry,Gas,421
http://statistics.data.gov.uk/id/local-authority/12UE,Huntingdonshire District Council,01/09/2010,65454,"2,485.13",Technogym Uk Ltd,CR033037,One Leisure Sawtry,Equipment Purchases,500
http://statistics.data.gov.uk/id/local-authority/12UE,Huntingdonshire District Council,16/09/2010,65308,94.00,Clanpress King'S Lynn Ltd,CR413516,One Leisure Sawtry,Badges And Certificates,571
http://statistics.data.gov.uk/id/local-authority/12UE,Huntingdonshire District Council,30/09/2010,67243,72.86,G4s Cashservices Uk Ltd,CR407133,One Leisure Sawtry,Cash Collection,702
http://statistics.data.gov.uk/id/local-authority/12UE,Huntingdonshire District Council,16/09/2010,66510,"1,594.37",Starlite Roadshow,CR024127,One Leisure St Ives,Hired Staff,100
http://statistics.data.gov.uk/id/local-authority/12UE,Huntingdonshire District Council,23/09/2010,64297,246.33,Peter Lockyer Advertising Ltd,CR033030,One Leisure St Ives,Recruitment - Advertising,120
http://statistics.data.gov.uk/id/local-authority/12UE,Huntingdonshire District Council,09/09/2010,65707,"1,013.00",Purchase Power,CR033202,One Leisure St Ives,Postage,231
http://statistics.data.gov.uk/id/local-authority/12UE,Huntingdonshire District Council,30/09/2010,66572,63.57,Virgin Media Business,CR033120,One Leisure St Ives,Telephone Charges,240
http://statistics.data.gov.uk/id/local-authority/12UE,Huntingdonshire District Council,01/09/2010,64387,184.27,Virgin Media Business,CR033120,One Leisure St Ives,Telephone Charges,240
http://statistics.data.gov.uk/id/local-authority/12UE,Huntingdonshire District Council,30/09/2010,67577,117.50,Archant Herts & Cambs,CR415764,One Leisure St Ives,Advertising/Promoting Services,255
http://statistics.data.gov.uk/id/local-authority/12UE,Huntingdonshire District Council,30/09/2010,66569,113.00,Rotary Printers (Stourport) Lt,CR032312,One Leisure St Ives,Advertising/Promoting Services,255
http://statistics.data.gov.uk/id/local-authority/12UE,Huntingdonshire District Council,23/09/2010,65704,605.13,Ips,CR417339,One Leisure St Ives,Gen Building Mtce - Responsive,303
http://statistics.data.gov.uk/id/local-authority/12UE,Huntingdonshire District Council,09/09/2010,65056,"1,116.25",Labosport,CR480698,One Leisure St Ives,Gen Building Mtce - Responsive,303
http://statistics.data.gov.uk/id/local-authority/12UE,Huntingdonshire District Council,23/09/2010,66682,"4,549.60",M & J Commercial Restorations Ltd,CR480453,One Leisure St Ives,Gen Building Mtce - Responsive,303
http://statistics.data.gov.uk/id/local-authority/12UE,Huntingdonshire District Council,16/09/2010,63329,594.55,R S Air Conditioning Ltd,CR478470,One Leisure St Ives,Gen Building Mtce - Responsive,303
http://statistics.data.gov.uk/id/local-authority/12UE,Huntingdonshire District Council,01/09/2010,64865,627.45,Rbs Invoice Finance Limited,CR403759,One Leisure St Ives,Gen Building Mtce - Responsive,303
http://statistics.data.gov.uk/id/local-authority/12UE,Huntingdonshire District Council,16/09/2010,66670,880.44,Hako Machines Ltd,CR408372,One Leisure St Ives,Grounds Mtce Contractors,351
http://statistics.data.gov.uk/id/local-authority/12UE,Huntingdonshire District Council,30/09/2010,66487,810.75,Central High Rise Ltd,CR402114,One Leisure St Ives,Plant & Equipment Maintenance,380
http://statistics.data.gov.uk/id/local-authority/12UE,Huntingdonshire District Council,16/09/2010,66493,550.25,Siemens Plc,CR478123,One Leisure St Ives,Electricity,420
http://statistics.data.gov.uk/id/local-authority/12UE,Huntingdonshire District Council,16/09/2010,66485,"1,395.94",Swalec,CR407130,One Leisure St Ives,Electricity,420
http://statistics.data.gov.uk/id/local-authority/12UE,Huntingdonshire District Council,16/09/2010,66300,"7,857.93",Swalec,CR407130,One Leisure St Ives,Electricity,420
http://statistics.data.gov.uk/id/local-authority/12UE,Huntingdonshire District Council,23/09/2010,66584,"1,928.96",E-On Energy,CR416430,One Leisure St Ives,Gas,421
http://statistics.data.gov.uk/id/local-authority/12UE,Huntingdonshire District Council,30/09/2010,67540,"3,646.83",Cambridge Water Plc,CR000172,One Leisure St Ives,Water,432
http://statistics.data.gov.uk/id/local-authority/12UE,Huntingdonshire District Council,23/09/2010,67238,8.21,Booker Cash And Carry,CR027611,One Leisure St Ives,Cleaning Materials,443
http://statistics.data.gov.uk/id/local-authority/12UE,Huntingdonshire District Council,30/09/2010,67063,504.99,Maskearaid Ind Supplies,CR033423,One Leisure St Ives,Cleaning Materials,443
http://statistics.data.gov.uk/id/local-authority/12UE,Huntingdonshire District Council,01/09/2010,65276,504.99,Maskearaid Ind Supplies,CR033423,One Leisure St Ives,Cleaning Materials,443
http://statistics.data.gov.uk/id/local-authority/12UE,Huntingdonshire District Council,30/09/2010,66072,899.70,Abel Alarm Company Ltd,CR000201,One Leisure St Ives,Security,450
http://statistics.data.gov.uk/id/local-authority/12UE,Huntingdonshire District Council,01/09/2010,65456,"2,485.13",Technogym Uk Ltd,CR033037,One Leisure St Ives,Equipment Purchases,500
http://statistics.data.gov.uk/id/local-authority/12UE,Huntingdonshire District Council,23/09/2010,67238,"1,242.87",Booker Cash And Carry,CR027611,One Leisure St Ives,Bar Provisions,558
http://statistics.data.gov.uk/id/local-authority/12UE,Huntingdonshire District Council,23/09/2010,67230,"3,037.22",Heineken Uk Ltd,CR032678,One Leisure St Ives,Bar Provisions,558
http://statistics.data.gov.uk/id/local-authority/12UE,Huntingdonshire District Council,23/09/2010,67234,946.58,Pure Foods Systems Limited,CR416803,One Leisure St Ives,Bar Provisions,558
http://statistics.data.gov.uk/id/local-authority/12UE,Huntingdonshire District Council,23/09/2010,67238,13.49,Booker Cash And Carry,CR027611,One Leisure St Ives,Catering Materials,559
http://statistics.data.gov.uk/id/local-authority/12UE,Huntingdonshire District Council,23/09/2010,67217,658.89,South Lincs.Food Service,CR033415,One Leisure St Ives,Catering Materials,559
http://statistics.data.gov.uk/id/local-authority/12UE,Huntingdonshire District Council,16/09/2010,65308,129.25,Clanpress King'S Lynn Ltd,CR413516,One Leisure St Ives,Badges And Certificates,571
http://statistics.data.gov.uk/id/local-authority/12UE,Huntingdonshire District Council,16/09/2010,65294,969.69,Thurlow Nunn Standen Ltd,CR001534,One Leisure St Ives,Vehicle Maintenance,619
http://statistics.data.gov.uk/id/local-authority/12UE,Huntingdonshire District Council,30/09/2010,67243,218.57,G4s Cashservices Uk Ltd,CR407133,One Leisure St Ives,Cash Collection,702
http://statistics.data.gov.uk/id/local-authority/12UE,Huntingdonshire District Council,30/09/2010,67529,635.20,Sky Business,CR033259,One Leisure St Ives,Entertainments Inc Cable Tv,744
http://statistics.data.gov.uk/id/local-authority/12UE,Huntingdonshire District Council,23/09/2010,66086,545.20,Biffa Waste Services Ltd,CR000376,One Leisure St Ives,Waste Disposal,763
http://statistics.data.gov.uk/id/local-authority/12UE,Huntingdonshire District Council,01/09/2010,65200,685.26,Peter Lockyer Advertising Ltd,CR033030,One Leisure St Neots,Recruitment - Advertising,120
http://statistics.data.gov.uk/id/local-authority/12UE,Huntingdonshire District Council,23/09/2010,64297,246.33,Peter Lockyer Advertising Ltd,CR033030,One Leisure St Neots,Recruitment - Advertising,120
http://statistics.data.gov.uk/id/local-authority/12UE,Huntingdonshire District Council,23/09/2010,67260,763.75,Craftsman Quality Lockers Ltd,CR410022,One Leisure St Neots,Furniture,200
http://statistics.data.gov.uk/id/local-authority/12UE,Huntingdonshire District Council,30/09/2010,67607,634.50,Premier Softward Solutions Ltd,CR480758,One Leisure St Neots,Software,206
http://statistics.data.gov.uk/id/local-authority/12UE,Huntingdonshire District Council,30/09/2010,66572,65.13,Virgin Media Business,CR033120,One Leisure St Neots,Telephone Charges,240
http://statistics.data.gov.uk/id/local-authority/12UE,Huntingdonshire District Council,01/09/2010,64387,73.85,Virgin Media Business,CR033120,One Leisure St Neots,Telephone Charges,240
http://statistics.data.gov.uk/id/local-authority/12UE,Huntingdonshire District Council,30/09/2010,67577,117.50,Archant Herts & Cambs,CR415764,One Leisure St Neots,Advertising/Promoting Services,255
http://statistics.data.gov.uk/id/local-authority/12UE,Huntingdonshire District Council,30/09/2010,66569,113.00,Rotary Printers (Stourport) Lt,CR032312,One Leisure St Neots,Advertising/Promoting Services,255
http://statistics.data.gov.uk/id/local-authority/12UE,Huntingdonshire District Council,30/09/2010,67182,753.18,Pool Solutions Ltd,CR412070,One Leisure St Neots,Plant & Equipment Maintenance,380
http://statistics.data.gov.uk/id/local-authority/12UE,Huntingdonshire District Council,16/09/2010,66483,"4,640.35",Swalec,CR407130,One Leisure St Neots,Electricity,420
http://statistics.data.gov.uk/id/local-authority/12UE,Huntingdonshire District Council,23/09/2010,66580,"1,350.02",E-On Energy,CR416430,One Leisure St Neots,Gas,421
http://statistics.data.gov.uk/id/local-authority/12UE,Huntingdonshire District Council,23/09/2010,67192,738.78,Anglian Water,CR000071,One Leisure St Neots,Water,432
http://statistics.data.gov.uk/id/local-authority/12UE,Huntingdonshire District Council,09/09/2010,66127,"1,934.76",E A Ellison,CR480861,One Leisure St Neots,Equipment Purchases,500
http://statistics.data.gov.uk/id/local-authority/12UE,Huntingdonshire District Council,30/09/2010,67180,456.48,J P Lennard Ltd,CR028595,One Leisure St Neots,Equipment Purchases,500
http://statistics.data.gov.uk/id/local-authority/12UE,Huntingdonshire District Council,09/09/2010,66294,"3,591.04",Majestic Towels Ltd,CR480859,One Leisure St Neots,Equipment Purchases,500
http://statistics.data.gov.uk/id/local-authority/12UE,Huntingdonshire District Council,09/09/2010,66293,672.41,Majestic Towels Ltd,CR480859,One Leisure St Neots,Equipment Purchases,500
http://statistics.data.gov.uk/id/local-authority/12UE,Huntingdonshire District Council,23/09/2010,67259,"2,485.13",Technogym Uk Ltd,CR033037,One Leisure St Neots,Equipment Purchases,500
http://statistics.data.gov.uk/id/local-authority/12UE,Huntingdonshire District Council,23/09/2010,67176,"1,433.19",Chubb Fire Ltd,CR478924,One Leisure St Neots,Equipment Maintenance,511
http://statistics.data.gov.uk/id/local-authority/12UE,Huntingdonshire District Council,30/09/2010,67180,832.01,J P Lennard Ltd,CR028595,One Leisure St Neots,Sports Equipment,524
http://statistics.data.gov.uk/id/local-authority/12UE,Huntingdonshire District Council,09/09/2010,66126,"12,158.63",Decleor Uk Ltd,CR480786,One Leisure St Neots,Materials,550
http://statistics.data.gov.uk/id/local-authority/12UE,Huntingdonshire District Council,23/09/2010,67174,389.59,Caterserve Snacks Ltd,CR478090,One Leisure St Neots,Bar Provisions,558
http://statistics.data.gov.uk/id/local-authority/12UE,Huntingdonshire District Council,09/09/2010,65376,408.49,Caterserve Snacks Ltd,CR478090,One Leisure St Neots,Bar Provisions,558
http://statistics.data.gov.uk/id/local-authority/12UE,Huntingdonshire District Council,23/09/2010,67174,148.56,Caterserve Snacks Ltd,CR478090,One Leisure St Neots,Catering Materials,559
http://statistics.data.gov.uk/id/local-authority/12UE,Huntingdonshire District Council,09/09/2010,65376,77.52,Caterserve Snacks Ltd,CR478090,One Leisure St Neots,Catering Materials,559
http://statistics.data.gov.uk/id/local-authority/12UE,Huntingdonshire District Council,23/09/2010,67169,686.95,Caterserve Snacks Ltd,CR478090,One Leisure St Neots,Vending Materials,560
http://statistics.data.gov.uk/id/local-authority/12UE,Huntingdonshire District Council,09/09/2010,66126,"5,743.45",Decleor Uk Ltd,CR480786,One Leisure St Neots,Materials For Resale,570
http://statistics.data.gov.uk/id/local-authority/12UE,Huntingdonshire District Council,16/09/2010,65308,152.75,Clanpress King'S Lynn Ltd,CR413516,One Leisure St Neots,Badges And Certificates,571
http://statistics.data.gov.uk/id/local-authority/12UE,Huntingdonshire District Council,23/09/2010,67174,75.25,Caterserve Snacks Ltd,CR478090,One Leisure St Neots,Confectionery,572
http://statistics.data.gov.uk/id/local-authority/12UE,Huntingdonshire District Council,09/09/2010,65376,121.53,Caterserve Snacks Ltd,CR478090,One Leisure St Neots,Confectionery,572
http://statistics.data.gov.uk/id/local-authority/12UE,Huntingdonshire District Council,30/09/2010,67243,437.14,G4s Cashservices Uk Ltd,CR407133,One Leisure St Neots,Cash Collection,702
http://statistics.data.gov.uk/id/local-authority/12UE,Huntingdonshire District Council,30/09/2010,499756,607.97,Anglian Water,CR000071,One Leisure St Neots,Water,432
http://statistics.data.gov.uk/id/local-authority/12UE,Huntingdonshire District Council,09/09/2010,66279,622.00,United Wipes,CR477773,Operations Mgt Units,Service Charges,412
http://statistics.data.gov.uk/id/local-authority/12UE,Huntingdonshire District Council,23/09/2010,66512,969.30,Siemens Financial Services Ltd,CR032410,Operations Mgt Units,Equipment Finance Leases,502
http://statistics.data.gov.uk/id/local-authority/12UE,Huntingdonshire District Council,16/09/2010,65396,"3,130.80",John Henry & Sons,CR031967,Parks & Open Spaces,Sitework,359
http://statistics.data.gov.uk/id/local-authority/12UE,Huntingdonshire District Council,16/09/2010,65719,"1,101.56",Jones Plus Limited,CR416883,Parks & Open Spaces,Subcontractors,777
http://statistics.data.gov.uk/id/local-authority/12UE,Huntingdonshire District Council,09/09/2010,66206,"1,668.50",Lattenbury Services,CR406847,Parks & Open Spaces,Subcontractors,777
http://statistics.data.gov.uk/id/local-authority/12UE,Huntingdonshire District Council,01/09/2010,64546,"4,459.13",Lattenbury Services,CR406847,Parks & Open Spaces,Subcontractors,777
http://statistics.data.gov.uk/id/local-authority/12UE,Huntingdonshire District Council,30/09/2010,66027,"1,500.00",Zurich Municipal,CR003638,Parks & Open Spaces,Insurance Excess,797
http://statistics.data.gov.uk/id/local-authority/12UE,Huntingdonshire District Council,01/09/2010,64548,"7,745.89",Sutcliffe Play,CR478132,Parks Equipment Capital,Playground Equipment,360
http://statistics.data.gov.uk/id/local-authority/12UE,Huntingdonshire District Council,09/09/2010,66031,613.35,Flora Tec Ltd,CR028191,Pathfinder House Site,Gen Building Mtce - Responsive,303
http://statistics.data.gov.uk/id/local-authority/12UE,Huntingdonshire District Council,23/09/2010,65686,585.51,Kershaw Mechanical Services Ltd,CR480268,Pathfinder House Site,Gen Building Mtce - Responsive,303
http://statistics.data.gov.uk/id/local-authority/12UE,Huntingdonshire District Council,16/09/2010,66478,"10,532.92",Swalec,CR407130,Pathfinder House Site,Electricity,420
http://statistics.data.gov.uk/id/local-authority/12UE,Huntingdonshire District Council,16/09/2010,66665,"5,428.86",Anglian Water,CR000071,Pathfinder House Site,Water,432
http://statistics.data.gov.uk/id/local-authority/12UE,Huntingdonshire District Council,16/09/2010,66665,"6,045.63",Anglian Water,CR000071,Pathfinder House Site,Sewerage,433
http://statistics.data.gov.uk/id/local-authority/12UE,Huntingdonshire District Council,09/09/2010,66087,620.40,Ecocleen Services Limited,CR406985,Pathfinder House Site,Building Cleaning Internal,440
http://statistics.data.gov.uk/id/local-authority/12UE,Huntingdonshire District Council,09/09/2010,66085,"2,440.15",Ecocleen Services Limited,CR406985,Pathfinder House Site,Building Cleaning Internal,440
http://statistics.data.gov.uk/id/local-authority/12UE,Huntingdonshire District Council,30/09/2010,65767,613.35,International Displays,CR479798,Pathfinder House Site,Equipment Purchases,500
http://statistics.data.gov.uk/id/local-authority/12UE,Huntingdonshire District Council,30/09/2010,66219,661.64,Polybags Ltd,CR416785,Pathfinder House Site,Refuse Sacks,552
http://statistics.data.gov.uk/id/local-authority/12UE,Huntingdonshire District Council,09/09/2010,66033,567.53,Flora Tec Ltd,CR028191,Pathfinder House Site,Plants And Seeds,556
http://statistics.data.gov.uk/id/local-authority/12UE,Huntingdonshire District Council,23/09/2010,65766,"1,063.38",Nemco Utilities Ltd,CR409319,Pavillions,Gen Building Mtce - Planned,304
http://statistics.data.gov.uk/id/local-authority/12UE,Huntingdonshire District Council,23/09/2010,65765,954.10,Nemco Utilities Ltd,CR409319,Pavillions,Gen Building Mtce - Planned,304
http://statistics.data.gov.uk/id/local-authority/12UE,Huntingdonshire District Council,23/09/2010,65763,"1,063.38",Nemco Utilities Ltd,CR409319,Pavillions,Gen Building Mtce - Planned,304
http://statistics.data.gov.uk/id/local-authority/12UE,Huntingdonshire District Council,09/09/2010,66212,"1,739.00",Kaiser Doors Ltd,CR480860,Paxton Pits,Gen Building Mtce - Responsive,303
http://statistics.data.gov.uk/id/local-authority/12UE,Huntingdonshire District Council,30/09/2010,66197,"5,554.84",Lex Autolease Ltd,CR410751,People Performance&Partner Mu,Vehicle Operating Lease,601
http://statistics.data.gov.uk/id/local-authority/12UE,Huntingdonshire District Council,09/09/2010,66276,838.17,Phoenix Software Ltd,CR031918,Planning M U'S,Software,206
http://statistics.data.gov.uk/id/local-authority/12UE,Huntingdonshire District Council,09/09/2010,65736,"5,538.79",Automotive Leasing,CR406882,Planning M U'S,Vehicle Operating Lease,601
http://statistics.data.gov.uk/id/local-authority/12UE,Huntingdonshire District Council,30/09/2010,66196,"5,420.04",Lex Autolease Ltd,CR410751,Planning M U'S,Vehicle Operating Lease,601
http://statistics.data.gov.uk/id/local-authority/12UE,Huntingdonshire District Council,23/09/2010,66215,"1,397.05",Aecom,CR478307,Planning M U'S,Consultants Other,711
http://statistics.data.gov.uk/id/local-authority/12UE,Huntingdonshire District Council,09/09/2010,62126,"6,820.90",Aecom,CR478307,Planning M U'S,Consultants Other,711
http://statistics.data.gov.uk/id/local-authority/12UE,Huntingdonshire District Council,30/09/2010,66258,616.88,The Oyster Partnership,CR480450,Planning M U'S,Consultants Other,711
http://statistics.data.gov.uk/id/local-authority/12UE,Huntingdonshire District Council,23/09/2010,65963,555.19,The Oyster Partnership,CR480450,Planning M U'S,Consultants Other,711
http://statistics.data.gov.uk/id/local-authority/12UE,Huntingdonshire District Council,16/09/2010,65961,616.88,The Oyster Partnership,CR480450,Planning M U'S,Consultants Other,711
http://statistics.data.gov.uk/id/local-authority/12UE,Huntingdonshire District Council,09/09/2010,65960,925.31,The Oyster Partnership,CR480450,Planning M U'S,Consultants Other,711
http://statistics.data.gov.uk/id/local-authority/12UE,Huntingdonshire District Council,16/09/2010,65458,"2,288.64",B. S. Graves Electrical Ltd,CR000363,Property Development And Mgt,Gen Building Mtce - Planned,304
http://statistics.data.gov.uk/id/local-authority/12UE,Huntingdonshire District Council,23/09/2010,65720,"1,381.80",Ns Systems Limited,CR413493,Public Accountability,I T Line Rental,248
http://statistics.data.gov.uk/id/local-authority/12UE,Huntingdonshire District Council,30/09/2010,67480,"9,546.88",Research For Today Limited,CR480749,Public Accountability,Consultation And Surveys,770
http://statistics.data.gov.uk/id/local-authority/12UE,Huntingdonshire District Council,30/09/2010,65762,29.38,Beebys Limited,CR415822,Public Conveniences,Gen Building Mtce - Responsive,303
http://statistics.data.gov.uk/id/local-authority/12UE,Huntingdonshire District Council,30/09/2010,65762,763.75,Beebys Limited,CR415822,Public Conveniences,Gen Building Mtce - Planned,304
http://statistics.data.gov.uk/id/local-authority/12UE,Huntingdonshire District Council,30/09/2010,65760,763.75,Beebys Limited,CR415822,Public Conveniences,Gen Building Mtce - Planned,304
http://statistics.data.gov.uk/id/local-authority/12UE,Huntingdonshire District Council,30/09/2010,67565,"1,220.07",Swalec,CR407130,Public Conveniences,Electricity,420
http://statistics.data.gov.uk/id/local-authority/12UE,Huntingdonshire District Council,16/09/2010,66649,960.73,Anglian Water,CR000071,Public Conveniences,Water,432
http://statistics.data.gov.uk/id/local-authority/12UE,Huntingdonshire District Council,16/09/2010,66649,"1,082.15",Anglian Water,CR000071,Public Conveniences,Sewerage,433
http://statistics.data.gov.uk/id/local-authority/12UE,Huntingdonshire District Council,09/09/2010,66207,"12,829.83",Ssi Schaefer Ltd,CR407190,Recycling Equipment Capital,Recycling Bins,525
http://statistics.data.gov.uk/id/local-authority/12UE,Huntingdonshire District Council,30/09/2010,67554,"1,840.00",B P Morse,CR030128,Renovation/Improvement Grants,Professional Fees,798
http://statistics.data.gov.uk/id/local-authority/12UE,Huntingdonshire District Council,30/09/2010,66946,352.02,T N T Post Midlands Ltd,CR479965,Revenue Services Mus,Postage,231
http://statistics.data.gov.uk/id/local-authority/12UE,Huntingdonshire District Council,16/09/2010,66585,191.20,T N T Post Midlands Ltd,CR479965,Revenue Services Mus,Postage,231
http://statistics.data.gov.uk/id/local-authority/12UE,Huntingdonshire District Council,23/09/2010,66579,"1,518.47",T N T Post Midlands Ltd,CR479965,Revenue Services Mus,Postage,231
http://statistics.data.gov.uk/id/local-authority/12UE,Huntingdonshire District Council,01/09/2010,65217,371.32,T N T Post Midlands Ltd,CR479965,Revenue Services Mus,Postage,231
http://statistics.data.gov.uk/id/local-authority/12UE,Huntingdonshire District Council,01/09/2010,65216,500.49,T N T Post Midlands Ltd,CR479965,Revenue Services Mus,Postage,231
http://statistics.data.gov.uk/id/local-authority/12UE,Huntingdonshire District Council,23/09/2010,498202,"22,900.00",Muir Group Housing,CR401990,Social Housing Grant,Grants (Paid Out),800
http://statistics.data.gov.uk/id/local-authority/12UE,Huntingdonshire District Council,23/09/2010,66727,684.74,Dell Computer Corporation,CR408320,Software Capital,P C'S And Accessories,201
http://statistics.data.gov.uk/id/local-authority/12UE,Huntingdonshire District Council,16/09/2010,65916,629.61,Dell Computer Corporation,CR408320,Software Capital,P C'S And Accessories,201
http://statistics.data.gov.uk/id/local-authority/12UE,Huntingdonshire District Council,23/09/2010,66731,"2,626.13",Comtec,CR480140,Software Capital,Other I T Hardware,203
http://statistics.data.gov.uk/id/local-authority/12UE,Huntingdonshire District Council,30/09/2010,67638,"2,467.50",Chipside,CR479533,Software Capital,Software,206
http://statistics.data.gov.uk/id/local-authority/12UE,Huntingdonshire District Council,01/09/2010,26886,"9,200.00",Virgin Media Business,CR033120,Software Capital,I T Line Rental,248
http://statistics.data.gov.uk/id/local-authority/12UE,Huntingdonshire District Council,30/09/2010,67639,705.00,Chipside,CR479533,Software Capital,Consultants Other,711
http://statistics.data.gov.uk/id/local-authority/12UE,Huntingdonshire District Council,30/09/2010,67637,"4,103.75",Edrm Systems Ltd,CR416278,Software Capital,Consultants Other,711
http://statistics.data.gov.uk/id/local-authority/12UE,Huntingdonshire District Council,09/09/2010,65930,"5,287.50",Northgate Information Solutions Uk Ltd,CR028925,Software Capital,Consultants Other,711
http://statistics.data.gov.uk/id/local-authority/12UE,Huntingdonshire District Council,23/09/2010,66743,"3,733.67",John Henry & Sons,CR031967,Sports Equipment Capital,Sitework,359
http://statistics.data.gov.uk/id/local-authority/12UE,Huntingdonshire District Council,30/09/2010,66704,951.91,Peterborough Engraving,CR000620,Sports Equipment Capital,Signs,565
http://statistics.data.gov.uk/id/local-authority/12UE,Huntingdonshire District Council,30/09/2010,66568,"2,497.07",Staffline Group,CR416827,Street Cleaning,Hired Staff,100
http://statistics.data.gov.uk/id/local-authority/12UE,Huntingdonshire District Council,16/09/2010,66007,"2,746.72",Staffline Group,CR416827,Street Cleaning,Hired Staff,100
http://statistics.data.gov.uk/id/local-authority/12UE,Huntingdonshire District Council,30/09/2010,66005,"2,144.40",Staffline Group,CR416827,Street Cleaning,Hired Staff,100
http://statistics.data.gov.uk/id/local-authority/12UE,Huntingdonshire District Council,09/09/2010,64902,"2,114.59",Staffline Group,CR416827,Street Cleaning,Hired Staff,100
http://statistics.data.gov.uk/id/local-authority/12UE,Huntingdonshire District Council,01/09/2010,64574,"2,424.18",Staffline Group,CR416827,Street Cleaning,Hired Staff,100
http://statistics.data.gov.uk/id/local-authority/12UE,Huntingdonshire District Council,23/09/2010,64297,246.32,Peter Lockyer Advertising Ltd,CR033030,Street Cleaning,Recruitment - Advertising,120
http://statistics.data.gov.uk/id/local-authority/12UE,Huntingdonshire District Council,16/09/2010,65255,"1,368.88",Dal-Rod Uk Ltd,CR002782,Street Cleaning,Drains & Sewers,321
http://statistics.data.gov.uk/id/local-authority/12UE,Huntingdonshire District Council,30/09/2010,67448,"1,172.65",Red Forge Ltd,CR405690,Street Cleaning,Vehicle Maintenance,619
http://statistics.data.gov.uk/id/local-authority/12UE,Huntingdonshire District Council,30/09/2010,67447,"1,278.40",Red Forge Ltd,CR405690,Street Cleaning,Vehicle Maintenance,619
http://statistics.data.gov.uk/id/local-authority/12UE,Huntingdonshire District Council,16/09/2010,65403,731.44,Red Forge Ltd,CR405690,Street Cleaning,Vehicle Maintenance,619
http://statistics.data.gov.uk/id/local-authority/12UE,Huntingdonshire District Council,09/09/2010,66044,540.50,Ians Tyre And Exhaust Centre,CR405836,Street Cleaning,Tyres,630
http://statistics.data.gov.uk/id/local-authority/12UE,Huntingdonshire District Council,23/09/2010,65945,528.75,Lloyds Tsb Commercial Finance Ltd,CR410928,Street Cleaning,Subcontractors,777
http://statistics.data.gov.uk/id/local-authority/12UE,Huntingdonshire District Council,16/09/2010,65778,"1,250.00",Huntingdon Town Centre Initiative,CR415389,Tourism,Grants (Paid Out),800
http://statistics.data.gov.uk/id/local-authority/12UE,Huntingdonshire District Council,23/09/2010,67246,"5,000.00",Huntingdonshire Regional College,CR410476,Tourism,Grants (Paid Out),800
http://statistics.data.gov.uk/id/local-authority/12UE,Huntingdonshire District Council,09/09/2010,65674,"1,050.00",Zurich Municipal,CR477397,Town Centre Management,Ins (Service Related),260
http://statistics.data.gov.uk/id/local-authority/12UE,Huntingdonshire District Council,30/09/2010,67445,"2,917.97",Cambridgeshire County Council,CR006678,Trade Waste,Waste Disposal,763
http://statistics.data.gov.uk/id/local-authority/12UE,Huntingdonshire District Council,01/09/2010,64888,"2,663.20",Cambridgeshire County Council,CR006678,Trade Waste,Waste Disposal,763
http://statistics.data.gov.uk/id/local-authority/12UE,Huntingdonshire District Council,01/09/2010,64320,"2,381.63",Jba Consulting,CR480798,Watercourse Capital,Consultants Other,711
http://statistics.data.gov.uk/id/local-authority/12UE,Huntingdonshire District Council,23/09/2010,66616,"5,140.63",Lattenbury Services,CR406847,Watercourses,Drains & Sewers,321
http://statistics.data.gov.uk/id/local-authority/12UE,Huntingdonshire District Council,23/09/2010,66615,"3,842.25",Lattenbury Services,CR406847,Watercourses,Drains & Sewers,321
http://statistics.data.gov.uk/id/local-authority/12UE,Huntingdonshire District Council,01/09/2010,64326,"4,876.25",Lattenbury Services,CR406847,Watercourses,Drains & Sewers,321
http://statistics.data.gov.uk/id/local-authority/12UE,Huntingdonshire District Council,23/09/2010,66614,705.00,Lattenbury Services,CR406847,Watercourses,Sitework,359
